fUSD/lending_fUSD_20260106
["ID","MTS","AMOUNT","RATE_DAILY","PERIOD"]
[400563178,1767721832582,-1177.50612176,0.00016631,2]
[400563179,1767721832591,-1177.50612176,0.00016631,2]
[400563180,1767721832601,-1177.50612176,0.00016631,2]
[400563181,1767721832611,-1177.50612176,0.00016631,2]
[400563182,1767721832621,-1177.50612176,0.00016631,2]
[400563183,1767721832631,-1177.50612176,0.00016631,2]
[400563184,1767721832643,-1177.50612176,0.00016631,2]
[400563185,1767721832653,-1177.50612176,0.00016631,2]
[400563186,1767721832662,-1177.50612175,0.00016631,2]
[400563187,1767721832672,-211.57,0.00016631,2]
[400563188,1767721832683,-9378.23,0.00016632,2]
[400563189,1767721832691,-532.91126857,0.00016632,2]
[400563190,1767721832703,-3757.54575348,0.00016632,2]
[400563191,1767721832715,-33745.00469402,0.00016632,2]
[400563192,1767721832737,-54626.24828393,0.00016632,2]
[400563193,1767721832746,-17532.87236501,0.00016632,2]
[400563194,1767721832758,-462.53763499,0.00016632,2]
[400563195,1767721832767,-2098.27049991,0.00016632,2]
[400563196,1767721832778,-408.2574532,0.00016632,2]
[400563197,1767721832789,-323.3292545,0.00016632,2]
[400563198,1767721832800,-1013.08682692,0.00016632,2]
[400563199,1767721832811,-3444.2674592,0.00016632,2]
[400563204,1767721837499,-2712.77850627,0.00016632,2]
[400563205,1767721837509,-999.99,0.00016632,2]
[400563206,1767721837518,-299.99,0.00016632,4]
[400563207,1767721837528,-365.08956248,0.00016632,2]
[400563208,1767721837552,-351.88118535,0.00016632,2]
[400563209,1767721837608,-1249.75727279,0.00016632,2]
[400563210,1767721837744,-390.805764,0.00016632,2]
[400563211,1767721837755,-5642.47621538,0.00016632,2]
[400563212,1767721837765,-12035.4,0.00016633,2]
[400563214,1767721837774,-10961.89486383,0.00016796,2]
[400563215,1767721837783,-230.0698606,0.00016796,2]
[400563216,1767721837792,-1180.21,0.00016828,2]
[400563217,1767721837802,-490.33101565,0.00016894,2]
[400563218,1767721837811,-500.0,0.00016894,2]
[400563219,1767721837821,-413.62882258,0.00016894,2]
[400563221,1767721837831,-500.0,0.00016894,2]
[400563222,1767721837841,-485.27187536,0.00016894,2]
[400563224,1767721837852,-500.0,0.00016894,2]
[400563226,1767721837862,-396.5817819,0.00016894,2]
[400563228,1767721837873,-500.0,0.00016894,2]
[400563230,1767721837882,-500.0,0.00016894,2]
[400563231,1767721837895,-500.0,0.00016894,2]
[400563233,1767721837905,-523334.23148667,0.00016895,2]
[400563237,1767721837923,-436.75223375,0.00016895,2]
[400563240,1767721837934,-251.80538329,0.00016895,2]
[400563445,1767721840137,-1.7e-07,0.00016895,2]
[400563447,1767721840153,-10703.3979,0.00016895,2]
[400563450,1767721840164,-4619.849466,0.00016895,2]
[400563452,1767721840175,-23380.25365777,0.00016895,2]
[400563454,1767721840186,-276.871998,0.00016895,2]
[400563467,1767721840273,-1361.29,0.00016895,2]
[400563469,1767721840284,-506.37642362,0.00016895,2]
[400563472,1767721840296,-1368.08453927,0.00016895,2]
[400563474,1767721840307,-5426.82916256,0.00016895,2]
[400563476,1767721840319,-8302.63099402,0.00016895,2]
[400563482,1767721840367,-703.4738453,0.00016895,2]
[400563484,1767721840379,-347.45489711,0.00016895,2]
[400563486,1767721840390,-2751.39440627,0.00016895,2]
[400563488,1767721840402,-11393.00688643,0.00016895,2]
[400563490,1767721840414,-860.73995649,0.00016895,2]
[400563493,1767721840426,-854.0836,0.00016895,2]
[400563495,1767721840437,-5954.8,0.00016895,2]
[400563498,1767721840457,-1983.87271304,0.00016895,2]
[400563500,1767721840468,-278.00301495,0.00016895,2]
[400563736,1767721843021,-7232.58976982,0.00016895,2]
[400563860,1767721844554,-962.69945914,0.00016895,2]
[400563862,1767721844566,-489.07083889,0.00016895,2]
[400563868,1767721844611,-22215.37913688,0.00016895,2]
[400563874,1767721844665,-305309.68491155,0.00016895,2]
[400563876,1767721844677,-300.0,0.00016895,2]
[400563878,1767721844688,-366.86462303,0.00016895,2]
[400563883,1767721844721,-58028.50869598,0.00016895,2]
[400563885,1767721844730,-211.57,0.00016905,2]
[400563887,1767721844739,-151.0,0.00016937,2]
[400563889,1767721844748,-151.0,0.00016938,2]
[400563891,1767721844757,-151.0,0.00016938,2]
[400563893,1767721844766,-151.0,0.00016958,2]
[400563894,1767721844775,-6703.2125,0.00016986,2]
[400563896,1767721844785,-236.4778,0.00016986,2]
[400563899,1767721844795,-2858.5782,0.00016986,2]
[400563900,1767721844804,-1528.553,0.00016996,2]
[400563903,1767721844813,-162.46,0.00016996,2]
[400563905,1767721844823,-2500.0,0.00016996,2]
[400563907,1767721844836,-33569.5495,0.00016996,2]
[400563909,1767721844846,-1000.0,0.00016996,2]
[400563911,1767721844857,-500.0,0.00017086,2]
[400563913,1767721844866,-500.0,0.00017086,2]
[400563914,1767721844881,-500.0,0.00017086,2]
[400563916,1767721844892,-500.0,0.00017086,2]
[400563918,1767721844902,-500.0,0.00017086,2]
[400563920,1767721844911,-500.0,0.00017086,2]
[400563923,1767721844922,-500.0,0.00017086,2]
[400563925,1767721844931,-151.0,0.00017086,2]
[400563926,1767721844941,-500.0,0.00017086,2]
[400563928,1767721844952,-151.0,0.00017086,2]
[400563931,1767721844961,-500.0,0.00017086,2]
[400563932,1767721844971,-151.0,0.00017086,2]
[400563934,1767721844980,-620.0,0.00017086,2]
[400563936,1767721844989,-500.0,0.00017086,2]
[400563938,1767721844998,-151.0,0.00017086,2]
[400563940,1767721845008,-500.0,0.00017086,2]
[400563942,1767721845017,-151.0,0.00017086,2]
[400563944,1767721845027,-500.0,0.00017086,2]
[400563946,1767721845036,-151.0,0.00017086,2]
[400563948,1767721845045,-500.0,0.00017086,2]
[400563950,1767721845054,-151.0,0.00017086,2]
[400563952,1767721845063,-500.0,0.00017086,2]
[400563954,1767721845073,-151.0,0.00017086,2]
[400563956,1767721845081,-151.0,0.00017086,2]
[400563958,1767721845091,-250.0,0.00017086,2]
[400563960,1767721845100,-151.0,0.00017086,2]
[400563962,1767721845109,-151.0,0.00017086,2]
[400563964,1767721845119,-500.0,0.00017086,2]
[400563967,1767721845128,-500.0,0.00017086,2]
[400563968,1767721845138,-500.0,0.00017086,2]
[400563970,1767721845149,-500.0,0.00017086,2]
[400563972,1767721845158,-500.0,0.00017086,2]
[400563975,1767721845168,-500.0,0.00017086,2]
[400563977,1767721845177,-500.0,0.00017086,2]
[400563979,1767721845187,-250.0,0.00017086,2]
[400563980,1767721845196,-500.0,0.00017086,2]
[400563983,1767721845206,-250.0,0.00017086,2]
[400563985,1767721845216,-500.0,0.00017086,2]
[400563987,1767721845225,-250.0,0.00017086,2]
[400563989,1767721845235,-500.0,0.00017086,2]
[400563991,1767721845244,-250.0,0.00017086,2]
[400563992,1767721845253,-500.0,0.00017086,2]
[400563995,1767721845264,-250.0,0.00017086,2]
[400563996,1767721845274,-250.0,0.00017086,2]
[400564000,1767721845284,-250.0,0.00017086,2]
[400564001,1767721845293,-275.30162004,0.00017086,2]
[400564003,1767721845302,-500.0,0.00017096,2]
[400564005,1767721845312,-500.0,0.00017096,2]
[400564009,1767721845323,-500.0,0.00017096,2]
[400564011,1767721845332,-500.0,0.00017096,2]
[400564012,1767721845342,-500.0,0.00017096,2]
[400564014,1767721845351,-500.0,0.00017096,2]
[400564017,1767721845362,-500.0,0.00017096,2]
[400564018,1767721845371,-500.0,0.00017096,2]
[400564020,1767721845380,-1000.0,0.00017096,2]
[400564022,1767721845391,-833.51078609,0.00017096,2]
[400564024,1767721845402,-520.43548504,0.00017096,2]
[400564027,1767721845415,-500.0,0.00017096,2]
[400564028,1767721845427,-211.34,0.0001712,2]
[400564031,1767721845438,-211.57,0.00017179,2]
[400564033,1767721845449,-500.0,0.00017195,2]
[400564035,1767721845458,-500.0,0.00017195,2]
[400564037,1767721845469,-500.0,0.00017196,2]
[400564039,1767721845478,-522.96995118,0.00017196,2]
[400564041,1767721845488,-414.08933578,0.00017196,2]
[400564043,1767721845497,-500.0,0.00017196,2]
[400564044,1767721845507,-500.0,0.00017196,2]
[400564046,1767721845517,-500.0,0.00017196,2]
[400564048,1767721845527,-500.0,0.00017196,2]
[400564051,1767721845536,-500.0,0.00017196,2]
[400564053,1767721845546,-500.0,0.00017196,2]
[400564055,1767721845556,-500.0,0.00017196,2]
[400564056,1767721845565,-500.0,0.00017196,2]
[400564058,1767721845575,-500.0,0.00017196,2]
[400564060,1767721845584,-500.0,0.00017196,2]
[400564062,1767721845594,-500.0,0.00017196,2]
[400564065,1767721845604,-517.0,0.00017245,2]
[400564067,1767721845613,-517.0,0.00017269,2]
[400564069,1767721845623,-517.0,0.00017294,2]
[400564071,1767721845633,-517.0,0.00017326,2]
[400564073,1767721845643,-168.51,0.00017331,2]
[400564075,1767721845652,-200.0,0.00017354,2]
[400564077,1767721845662,-250.0,0.00017399,2]
[400564079,1767721845672,-517.0,0.00017446,2]
[400564081,1767721845682,-211.57,0.00017453,2]
[400564083,1767721845692,-202.61813708,0.00017463,7]
[400564085,1767721845701,-150.0,0.00017463,7]
[400564087,1767721845711,-1967.0,0.000175,2]
[400564089,1767721845720,-517.0,0.00017512,2]
[400564091,1767721845729,-517.0,0.00017563,2]
[400564093,1767721845740,-517.0,0.00017578,2]
[400564095,1767721845749,-517.0,0.0001759,2]
[400564097,1767721845758,-517.0,0.00017607,2]
[400564099,1767721845767,-195.0,0.00017632,2]
[400564101,1767721845776,-300.0,0.00017632,2]
[400564103,1767721845786,-300.0,0.00017632,2]
[400564105,1767721845795,-2500.0,0.00017632,2]
[400564106,1767721845804,-250.0,0.00017632,2]
[400564108,1767721845813,-195.0,0.00017632,2]
[400564110,1767721845822,-517.0,0.00017632,2]
[400564113,1767721845832,-517.0,0.00017653,2]
[400564115,1767721845842,-517.0,0.0001768,2]
[400564117,1767721845853,-517.0,0.00017682,2]
[400564119,1767721845862,-300.0,0.00017686,2]
[400564121,1767721845872,-301.48234093,0.00017704,2]
[400564123,1767721845882,-300.0,0.00017716,2]
[400564125,1767721845892,-211.5913644,0.00017727,2]
[400564127,1767721845901,-1148.16944347,0.00017737,7]
[400564129,1767721845910,-211.34,0.00017739,2]
[400564131,1767721845920,-150.0,0.0001774,2]
[400564132,1767721845932,-847.0,0.00017744,2]
[400564134,1767721845941,-517.0,0.00017747,2]
[400564136,1767721845950,-300.0,0.00017755,2]
[400564138,1767721845959,-300.0,0.00017773,2]
[400564140,1767721845969,-300.0,0.000178,2]
[400564142,1767721845978,-1516.20815108,0.0001783,2]
[400564144,1767721845987,-150.0,0.00017831,2]
[400564146,1767721845996,-517.0,0.00017838,2]
[400564148,1767721846006,-300.0,0.00017841,2]
[400564150,1767721846015,-150.0,0.00017861,2]
[400564152,1767721846026,-517.0,0.00017861,2]
[400564154,1767721846036,-517.0,0.00017863,2]
[400564157,1767721846045,-517.0,0.00017865,2]
[400564160,1767721846054,-517.0,0.00017885,2]
[400564162,1767721846064,-232.65885128,0.000179,2]
[400564164,1767721846074,-1899.23071139,0.000179,2]
[400564166,1767721846083,-229.88754356,0.000179,2]
[400564168,1767721846092,-215.71898558,0.000179,2]
[400564170,1767721846101,-300.0,0.00017907,2]
[400564172,1767721846110,-150.0,0.00017954,2]
[400564174,1767721846119,-195.0,0.00017972,2]
[400564176,1767721846129,-500.0,0.00017989,2]
[400564178,1767721846138,-500.0,0.00017989,2]
[400564180,1767721846149,-500.0,0.00017989,2]
[400564182,1767721846158,-500.0,0.00017989,2]
[400564184,1767721846167,-500.0,0.00017989,2]
[400564186,1767721846176,-500.0,0.00017989,2]
[400564188,1767721846185,-300.0,0.00017991,2]
[400564190,1767721846194,-500.0,0.00017999,2]
[400564192,1767721846203,-500.0,0.00017999,2]
[400564194,1767721846212,-500.0,0.00017999,2]
[400564196,1767721846221,-500.0,0.00017999,2]
[400564198,1767721846230,-500.0,0.00017999,2]
[400564200,1767721846240,-500.0,0.00017999,2]
[400564202,1767721846250,-500.0,0.00017999,2]
[400564204,1767721846258,-500.0,0.00017999,2]
[400564206,1767721846268,-500.0,0.00017999,2]
[400564208,1767721846278,-500.0,0.00017999,2]
[400564210,1767721846287,-492.10833622,0.00017999,2]
[400564212,1767721846298,-500.0,0.00017999,2]
[400564214,1767721846307,-500.0,0.00017999,2]
[400564216,1767721846316,-587.42809654,0.00017999,2]
[400564218,1767721846326,-500.0,0.00017999,2]
[400564220,1767721846335,-500.0,0.00017999,2]
[400564222,1767721846344,-500.0,0.00017999,2]
[400564224,1767721846354,-500.0,0.00017999,2]
[400564226,1767721846365,-500.0,0.00017999,2]
[400564228,1767721846375,-468.04981383,0.00017999,2]
[400564251,1767721846578,-500.0,0.00017999,2]
[400564253,1767721846587,-500.0,0.00017999,2]
[400564255,1767721846596,-500.0,0.00017999,2]
[400564257,1767721846606,-500.0,0.00017999,2]
[400564259,1767721846615,-342.29233774,0.00017999,2]
[400564261,1767721846624,-3350.0,0.00018,2]
[400564263,1767721846633,-251753.11284178,0.00018,2]
[400564265,1767721846648,-340.981756,0.00018,2]
[400564268,1767721846660,-299.96849985,0.00018,2]
[400564270,1767721846671,-3448.65656316,0.00018,2]
[400564272,1767721846681,-4197.18904291,0.00018,2]
[400564275,1767721846696,-1121.7945331,0.00018,2]
[400564277,1767721846709,-1790.08409533,0.00018,2]
[400564280,1767721846733,-264.06319968,0.00018,2]
[400564283,1767721846750,-410.39994,0.00018,2]
[400564285,1767721846763,-302.0,0.00018,2]
[400564297,1767721846910,-36818.8,0.00018,2]
[400564298,1767721846921,-2210.25629834,0.00018,2]
[400564299,1767721846937,-999.0,0.00018,2]
[400564300,1767721846953,-220146.36662864,0.00018,2]
[400564301,1767721846964,-1151.2625,0.00018,2]
[400564302,1767721846980,-945.83191163,0.00018,2]
[400564304,1767721846999,-280.84999606,0.00018,2]
[400564307,1767721847011,-9661.12732587,0.00018,2]
[400564894,1767721866018,-730.81628515,0.00016531,2]
[400564895,1767721873219,-258.65582907,0.00016531,2]
[400564896,1767721876593,-168.42467707,0.00016531,2]
[400564897,1767721878563,-280.34989237,0.00016531,2]
[400564898,1767721881569,-287.45422444,0.00016531,2]
[400564899,1767721884831,-340.78422959,0.00016531,2]
[400564900,1767721887566,-155.02819842,0.00016531,2]
[400564901,1767721888893,-223.4736911,0.00016531,2]
[400564902,1767721890398,-321.61320066,0.00016531,2]
[400564903,1767721894459,-376.16799028,0.00016531,2]
[400564904,1767721896376,-193.52154911,0.00016531,2]
[400564905,1767721898395,-249.67240396,0.00016531,2]
[400564906,1767721899861,-500.0,0.00016531,2]
[400564907,1767721901507,-22.29482878,0.00016531,2]
[400564908,1767721901528,-413.403073,0.00016531,2]
[400564909,1767721904094,-181.27526242,0.00016531,2]
[400564910,1767721908841,-244.15581748,0.00016531,2]
[400564911,1767721910292,-164.77834246,0.00016531,2]
[400564914,1767721912938,-250.55035276,0.00016531,2]
[400564918,1767721915541,-210.22252446,0.00016531,2]
[400564919,1767721917034,-186.68173507,0.00016531,2]
[400564920,1767721918620,-336.0349912,0.00016531,2]
[400564921,1767721926642,-300.0,0.0001653,2]
[400564922,1767721926664,-129.5269318,0.00016531,2]
[400564923,1767721928948,-234.07253898,0.00016531,2]
[400564924,1767721932332,-204.01120771,0.00016531,2]
[400564925,1767721935937,-287.17334878,0.00016531,2]
[400564926,1767721940291,-225.43491,0.00016531,2]
[400564927,1767721943467,-175.88721697,0.00016531,2]
[400564928,1767721948912,-308.75745378,0.00016531,2]
[400564929,1767721950336,-470.12465888,0.00016531,2]
[400564930,1767721951816,-173.10566553,0.00016531,2]
[400564931,1767721956057,-186.59051029,0.00016531,2]
[400564932,1767721958079,-203.13612012,0.00016531,2]
[400564933,1767721960119,-208.2668177,0.00016531,2]
[400564934,1767721964405,-194.09596164,0.00016531,2]
[400564935,1767721970507,-316.98977768,0.00016531,2]
[400564936,1767721972024,-440.98135138,0.00016531,2]
[400564937,1767721974036,-236.53913856,0.00016531,2]
[400564938,1767721977387,-338.58007177,0.00016531,2]
[400564939,1767721980184,-172.18448779,0.00016531,2]
[400564940,1767721981665,-294.09938336,0.00016531,2]
[400564941,1767721985548,-222.28351912,0.00016531,2]
[400564942,1767722001752,-259.73189403,0.00016531,2]
[400564944,1767722004113,-365.63287425,0.00016531,2]
[400564945,1767722006135,-296.97286097,0.00016531,2]
[400564946,1767722008205,-250.44480641,0.00016531,2]
[400564947,1767722013066,-303.37599486,0.00016531,2]
[400564948,1767722015171,-210.26006377,0.00016531,2]
[400564949,1767722019211,1237.98,0.00025817,120]
[400564950,1767722021504,-269.54021122,0.00016531,2]
[400564951,1767722023731,-341.30165096,0.00016531,2]
[400564952,1767722025210,-317.60643956,0.00016531,2]
[400564953,1767722028463,-166.21520358,0.00016531,2]
[400564954,1767722029878,-175.35010797,0.00016531,2]
[400564955,1767722045467,-178.38679934,0.0001653,2]
[400564956,1767722047487,-121.61320066,0.0001653,2]
[400564957,1767722047512,-51.57972755,0.00016531,2]
[400564958,1767722052239,-300.43692962,0.00016531,2]
[400564959,1767722054289,-221.3506559,0.00016531,2]
[400564960,1767722056992,-331.8690495,0.00016531,2]
[400564961,1767722060419,-214.90210531,0.00016531,2]
[400564962,1767722062222,-166.67037824,0.00016531,2]
[400564963,1767722063842,-174.42241913,0.00016531,2]
[400564964,1767722070054,-168.43849821,0.00016531,2]
[400564965,1767722072681,-273.92708643,0.00016531,2]
[400564966,1767722077197,-194.90053023,0.0001653,2]
[400564968,1767722079199,-94.63964558,0.0001653,2]
[400564969,1767722079225,-320.78189792,0.0001653,2]
[400564971,1767722080716,-22.44981303,0.0001653,2]
[400564972,1767722080746,-177.49246838,0.0001653,2]
[400564975,1767722084729,-178.69160164,0.0001653,2]
[400564976,1767722086146,-143.81592998,0.0001653,2]
[400564977,1767722086173,-47.48231998,0.0001653,2]
[400564978,1767722089903,-321.30839836,0.0001653,2]
[400564979,1767722092429,-131.20928166,0.0001653,2]
[400564980,1767722092454,-61.78902937,0.0001653,2]
[400564981,1767722094444,-324.68974004,0.0001653,2]
[400564982,1767722096980,-113.52123059,0.0001653,2]
[400564983,1767722097004,-90.33876924,0.0001653,2]
[400564984,1767722100551,-99.35154351,0.0001653,2]
[400564985,1767722100575,-165.01105953,0.0001653,2]
[400564986,1767722103151,-255.488989,0.00016529,2]
[400564987,1767722104707,-44.511011,0.00016529,2]
[400564988,1767722104733,-145.78557976,0.00016529,2]
[400564989,1767722110407,-154.21442024,0.00016529,2]
[400564990,1767722110432,-58.48643486,0.00016529,2]
[400564991,1767722112570,-359.07580588,0.00016529,2]
[400564992,1767722115239,-347.09886432,0.00016529,2]
[400564993,1767722116716,-305.44719933,0.00016529,2]
[400564994,1767722118786,-238.92681915,0.00016432,2]
[400564995,1767722122283,247.0,0.00025017,120]
[400564996,1767722123559,247.0,0.00026268,120]
[400564997,1767722124885,247.0,0.00027581,120]
[400564998,1767722125844,-158.44294269,0.00016432,2]
[400564999,1767722126176,247.0,0.0002896,120]
[400565000,1767722127542,247.0,0.00030408,120]
[400565001,1767722128159,-253.84061876,0.00016432,2]
[400565002,1767722129278,247.0,0.00031928,120]
[400565003,1767722133269,-175.14988372,0.00016432,2]
[400565004,1767722134810,-297.37345074,0.00016432,2]
[400565005,1767722136833,-196.34804293,0.00016432,2]
[400565007,1767722139474,-188.31668313,0.00016432,2]
[400565008,1767722142238,-367.0420815,0.00016432,2]
[400565009,1767722144808,-207.44371838,0.00016432,2]
[400565010,1767722149117,-152.90274074,0.00016432,2]
[400565011,1767722151615,-358.93138377,0.00016432,2]
[400565012,1767722153088,-203.37762642,0.00016432,2]
[400565013,1767722157279,-182.95573177,0.00016432,2]
[400565014,1767722160991,-305.71627241,0.00016432,2]
[400565015,1767722165876,-205.90101924,0.00016432,2]
[400565016,1767722167906,-333.17934848,0.00016432,2]
[400565017,1767722169379,-185.79476472,0.00016432,2]
[400565018,1767722173187,-164.37528134,0.00016432,2]
[400565019,1767722174680,-218.45570258,0.00016432,2]
[400565020,1767722176799,-229.86321288,0.00016432,2]
[400565021,1767722181842,-333.88225715,0.00016432,2]
[400565022,1767722183324,-214.66824121,0.00016432,2]
[400565023,1767722184864,-246.03050284,0.00016432,2]
[400565024,1767722190516,-180.79882043,0.00016432,2]
[400565025,1767722191926,-195.57434488,0.00016432,2]
[400565026,1767722197834,-162.80669965,0.00016432,2]
[400565027,1767722201583,-390.67417938,0.00016432,2]
[400565028,1767722203050,-199.09371227,0.00016432,2]
[400565029,1767722206824,-155.93683141,0.00016432,2]
[400565031,1767722214523,-261.58490989,0.00016432,2]
[400565033,1767722216592,-155.19416157,0.00016432,2]
[400565035,1767722221051,-288.74544001,0.00016432,2]
[400565036,1767722222471,-166.82065152,0.00016432,2]
[400565039,1767722225685,-289.37263991,0.00016432,2]
[400565041,1767722228359,-246.08198976,0.00016431,2]
[400565042,1767722230807,-53.91801024,0.00016431,2]
[400565043,1767722230829,-111.70587656,0.00016432,2]
[400565044,1767722231917,-349.23455367,0.00016432,2]
[400565046,1767722233628,-250.0,0.00016432,2]
[400565047,1767722233653,-139.77200775,0.00016432,2]
[400565050,1767722238919,-283.52983274,0.00016432,2]
[400565053,1767722245689,-383.31682394,0.00016432,2]
[400565054,1767722247824,-184.94993181,0.00016432,2]
[400565055,1767722249655,-260.96047301,0.00016432,2]
[400565056,1767722252028,-195.04262592,0.00016432,2]
[400565057,1767722253123,-230.13386327,0.00016432,2]
[400565058,1767722254645,-340.56790359,0.00016432,2]
[400565059,1767722256650,-26.27727349,0.00016432,2]
[400565060,1767722256673,-228.45568336,0.00016432,2]
[400565061,1767722261258,-356.66185142,0.00016432,2]
[400565062,1767722262742,-205.27058711,0.00016432,2]
[400565063,1767722264703,-163.77363362,0.00016432,2]
[400565064,1767722269232,-298.35835247,0.00016432,2]
[400565065,1767722271811,-198.54862035,0.00016432,2]
[400565066,1767722277108,-220.23381288,0.00016432,2]
[400565067,1767722278549,-255.78449296,0.00016432,2]
[400565068,1767722280798,-345.15939816,0.00016432,2]
[400565069,1767722285163,-239.02861214,0.00016432,2]
[400565070,1767722285186,-186.32616413,0.00016432,2]
[400565071,1767722285208,-25.89925905,0.00016481,2]
[400565072,1767722315506,-169.10074095,0.00016481,2]
[400565073,1767722315533,-6.87263028,0.00016529,2]
[400565074,1767722318409,-123.01906533,0.00016529,2]
[400565075,1767722318441,-176.98093467,0.0001653,2]
[400565076,1767722320531,-158.0080058,0.0001653,2]
[400565077,1767722320563,-36.9919942,0.0001653,2]
[400565078,1767722324454,153.23,0.00013864,2]
[400565079,1767722325879,-153.23,0.00016175,2]
[400565080,1767722325903,-17.67443543,0.0001653,2]
[400565081,1767722327859,-472.9408177,0.0001653,2]
[400565082,1767722327902,-159.02752419,0.0001653,2]
[400565083,1767722333184,-281.54429759,0.0001653,2]
[400565084,1767722335943,-59.42817822,0.0001653,2]
[400565085,1767722335971,-122.22603337,0.0001653,2]
[400565086,1767722340398,-226.47774778,0.0001653,2]
[400565087,1767722343092,-163.03828711,0.00016529,2]
[400565088,1767722345003,-136.96171289,0.00016529,2]
[400565089,1767722345030,-151.29621885,0.0001653,2]
[400565090,1767722345055,-12.72989068,0.0001653,2]
[400565091,1767722349294,-203.86,0.0001653,2]
[400565092,1767722351417,-255.77136157,0.0001653,2]
[400565093,1767722356590,-27.63874775,0.0001653,2]
[400565094,1767722356621,-272.36125225,0.0001653,2]
[400565095,1767722358097,-227.63874775,0.0001653,2]
[400565096,1767722358124,-4.70556767,0.0001653,2]
[400565097,1767722360236,-387.81249801,0.0001653,2]
[400565098,1767722362884,-107.48193432,0.0001653,2]
[400565099,1767722362909,-344.11257757,0.0001653,2]
[400565100,1767722364846,-155.88742243,0.0001653,2]
[400565101,1767722364872,-194.1842935,0.0001653,2]
[400565102,1767722367026,-182.99712902,0.0001653,2]
[400565103,1767722369562,-122.81857748,0.0001653,2]
[400565104,1767722369594,-134.97511581,0.0001653,2]
[400565105,1767722372232,-202.17071259,0.0001653,2]
[400565106,1767722374235,-162.8541716,0.0001653,2]
[400565107,1767722374264,-7.29476931,0.0001653,2]
[400565108,1767722376708,-263.72438278,0.0001653,2]
[400565109,1767722378092,-228.98084791,0.0001653,2]
[400565110,1767722378121,-32.45797723,0.0001653,2]
[400565111,1767722379588,-267.38288382,0.0001653,2]
[400565112,1767722381752,-300.0,0.0001653,2]
[400565113,1767722384778,-20.88226539,0.0001653,2]
[400565114,1767722384804,-205.37758616,0.0001653,2]
[400565115,1767722386276,-188.81615301,0.0001653,2]
[400565116,1767722388874,-105.80626083,0.0001653,2]
[400565117,1767722388901,-55.50908714,0.0001653,2]
[400565118,1767722391539,-365.66748255,0.0001653,2]
[400565119,1767722394155,-78.82343031,0.0001653,2]
[400565120,1767722394181,-98.17678086,0.0001653,2]
[400565121,1767722396622,-154.09944903,0.0001653,2]
[400565122,1767722398669,-247.72377011,0.0001653,2]
[400565123,1767722398697,-141.85273555,0.0001653,2]
[400565124,1767722402416,-202.37378735,0.00016529,2]
[400565125,1767722403897,-97.62621265,0.00016529,2]
[400565126,1767722403925,-300.0,0.00016529,2]
[400565127,1767722403954,-14.50439488,0.00016529,2]
[400565128,1767722406624,-281.49733174,0.00016521,2]
[400565130,1767722408360,-203.69662069,0.00016521,2]
[400565131,1767722409827,-202.6548135,0.00016521,2]
[400565133,1767722413352,-179.07657441,0.00016521,2]
[400565134,1767722414803,-345.3593635,0.00016521,2]
[400565135,1767722417486,-435.80607334,0.00016521,2]
[400565136,1767722423950,-400.2857465,0.00016521,2]
[400565137,1767722425352,-180.32884553,0.00016521,2]
[400565138,1767722429453,-189.4833,0.00016529,2]
[400565139,1767722431567,-207.4,0.00016529,2]
[400565140,1767722433551,-199.98509773,0.00016529,2]
[400565141,1767722434352,-374.804,0.00016529,2]
[400565142,1767722434463,-213.82320739,0.00016529,2]
[400565143,1767722434488,-104.09715868,0.0001653,2]
[400565144,1767722434573,-151.0,0.0001653,2]
[400565145,1767722436621,-65.28532533,0.0001653,2]
[400565146,1767722436652,-131.33821699,0.00016531,2]
[400565148,1767722440917,-181.49064984,0.00016531,2]
[400565149,1767722445004,-241.65238321,0.00016531,2]